Cogmind - Beta 9.2 @@@ ROGUE MODE // 2019.11.25 @ 18:35:50 Player: Fleshy Vegetable Bird Result: Self-destructed Performance ------------- Evolutions (1) 500 Regions Visited (3) 600 Robots Destroyed (45) 225 Value Destroyed (742) 742 Prototype IDs (1) 20 Alien Tech Used (0) 0 Bonus (-30) -30 TOTAL SCORE: 2057 Bonus ------- Follower Combat Kills 14 Friendly Fire -44 Cogmind --------- Core Integrity 216/400 Matter 247/300 Energy 150/150 System Corruption 4% Temperature Cool (396) Movement Treading (180) Ox1 Location -9/Materials Parts ------- > --- POWER (1) -------- Light Angular Momentum Engine > --- PROPULSION (3) --- Light Treads Light Treads > --- UTILITY (3) ------ Large Storage Unit Large Storage Unit > --- WEAPON (2) ------- Improved Medium Laser > --- INVENTORY (16) --- Medium Storage Unit Improved Sensor Array Light Armor Plating Hacking Suite Assault Rifle Autogun Light Cannon Light Cannon Mining Laser Peak State ------------ > --- POWER ------------ Light Angular Momentum Engine > --- PROPULSION ------- Light Treads Light Treads Light Treads > --- UTILITY ---------- Large Storage Unit Large Storage Unit > --- WEAPON ----------- Improved Medium Laser Beamcaster > --- INVENTORY -------- Medium Storage Unit Improved Sensor Array Light Armor Plating Hacking Suite Assault Rifle Autogun Light Cannon Light Cannon Mining Laser [Rating: 19] Favorites ----------- Power Ion Engine Engine Ion Engine Propulsion Wheel Treads Light Treads Wheel Wheel Utility Large Storage Unit Storage Large Storage Unit Weapon Assault Rifle Energy Gun Medium Laser Ballistic Gun Assault Rifle Ballistic Cannon Light Cannon Launcher Grenade Launcher Special Weapon Mining Laser Build | -11 -10 -10 -9 ------- Run | Scr Mat Min Mat Slots Evolved 2 | . . . 2 Power . | . . . . Propulsion 1 | . . . 1 Utility 1 | . . . 1 Weapon . | . . . . Parts Attached 36 | 8 16 . 12 Power 4 | 1 2 . 1 Engine 4 | 1 2 . 1 Core . | . . . . Reactor . | . . . . Propulsion 11 | 4 3 . 4 Treads 4 | . . . 4 Leg . | . . . . Wheel 7 | 4 3 . . Hover . | . . . . Flight . | . . . . Utility 4 | 2 2 . . Device . | . . . . Storage 4 | 2 2 . . Processor . | . . . . Hackware . | . . . . Protection . | . . . . Artifact . | . . . . Weapon 17 | 1 9 . 7 Energy Gun 4 | 1 . . 3 Energy Cannon . | . . . . Ballistic Gun 4 | . 4 . . Ballistic Cannon 1 | . . . 1 Launcher 5 | . 2 . 3 Special Weapon 3 | . 3 . . Impact Weapon . | . . . . Slashing Weapon . | . . . . Piercing Weapon . | . . . . Special Melee Weapon . | . . . . Unidentified Prototypes 1 | . . . 1 Parts Lost 16 | . 7 . 9 Power 3 | . 2 . 1 Propulsion 6 | . 3 . 3 Utility . | . . . . Weapon 7 | . 2 . 5 Highest Loss Streak 7 | . 2 . 7 Average Slot Usage (%) 88 | . 91 100 76 Engine 12 | . 13 14 11 Treads 2 | . . . 8 Wheel 21 | . 22 28 14 Storage 26 | . 28 28 22 Energy Gun 3 | . 2 . 7 Ballistic Gun 12 | . 14 14 5 Launcher 4 | . 5 . 3 Special Weapon 4 | . 3 14 2 Naked Turns . | . . . . Heaviest Build 49 | 13 42 40 49 Greatest Support 60 | 32 26 26 60 Greatest Overweight (x) 4 | . 4 1 1 Average Overweight (x) 1 | . 1 1 . Largest Inventory Capacity 16 | 8 16 16 16 Average Capacity 13 | 6 12 16 16 Most Carried 16 | 8 11 10 16 Average Carried 8 | 4 7 10 11 Final Capacity 16 | 8 16 16 16 Final Carried 10 | 8 10 10 9 Class Distribution -------------------- 72% | Mutant 27% | Scavenger-Mutant Dominant Class ---------------- Mutant | -10/Materials Mutant | -10/Mines Mutant | -9/Materials Resources | -11 -10 -10 -9 ----------- Run | Scr Mat Min Mat Matter Collected 893 | 179 499 31 184 Remotely . | . . . . Salvage Created 1054 | 155 461 87 351 Parts 71 | 14 36 1 20 Haulers Intercepted 2 | . 1 . 1 Recyclers Shooed . | . . . . Parts Field Recycled . | . . . . Retrieved Matter . | . . . . Parts Self-Destructed . | . . . . Prevented . | . . . . Kills | -11 -10 -10 -9 ------- Run | Scr Mat Min Mat Combat Hostiles Destroyed 30 | . 18 . 12 Guns 11 | . 8 . 3 Cannons 2 | . . . 2 AOE 16 | . 9 . 7 Classes Destroyed 9 | 2 5 1 1 Worker 4 | . 4 . . Tunneler 3 | 3 . . . Hauler 2 | . 1 . 1 Recycler 3 | 1 . 1 1 Operator 2 | . 2 . . Swarmer 18 | . 9 . 9 Grunt 10 | . 9 . 1 Sentry 2 | . . . 2 Zionite 1 | . . 1 . Best Kill Streak 8 | 4 8 1 4 Combat Bots Only 6 | . 6 . 3 Max Kills in Single Turn 3 | 1 3 1 2 Gunslinging . | . . . . Exploded 2 | . 2 . 2 Melee . | . . . . Uniques/NPCs Destroyed . | . . . . Combat | -11 -10 -10 -9 -------- Run | Scr Mat Min Mat Damage Taken 1879 | . 743 . 1136 Core 343 | . 159 . 184 Absorbed by Shields . | . . . . Core Remaining (%) 68 | 100 . 36 . Volleys Fired 132 | 7 88 4 33 Largest 2 | 1 2 1 2 Hottest 131 | 50 120 100 131 Shots Fired 186 | 7 121 4 54 Gun 141 | 7 100 . 34 Cannon 6 | . . . 6 Launcher 24 | . 10 . 14 Special 15 | . 11 4 . Kinetic 87 | . 68 . 19 Thermal 75 | 7 43 4 21 Explosive 16 | . 10 . 6 Electromagnetic 8 | . . . 8 Robot Hit Streak 9 | 4 8 2 9 Robot Miss Streak 6 | 1 4 1 6 Penetration Max . | . . . . Secondary Targets . | . . . . Shots Hit Robots 96 | 6 64 2 24 Core Hits 66 | 5 37 2 22 Critical Hits . | . . . . Critical Kills . | . . . . Critical Parts Destroyed . | . . . . Melee Attacks . | . . . . Impact . | . . . . Slashing . | . . . . Piercing . | . . . . Sneak Attacks . | . . . . Combat Hostiles . | . . . . Follow-up Attacks . | . . . . Damage Inflicted 2758 | 73 1486 72 1127 Guns 1227 | 73 839 . 315 Cannons 108 | . . . 108 Explosions 1327 | . 623 . 704 Melee . | . . . . Ramming . | . . . . Kinetic 700 | . 558 . 142 Thermal 838 | 73 305 72 388 Explosive 1015 | . 623 . 392 Electromagnetic 205 | . . . 205 Impact . | . . . . Slashing . | . . . . Piercing . | . . . . Highest Corruption 4 | . . . 4 Average Corruption 4 | . . . 4 Corruption Purged . | . . . . Effects 3 | . . . 3 Matter Fused 1 | . . . 1 Parts Rejected 1 | . . . 1 Targeting Errors 1 | . . . 1 Overload Shots . | . . . . Overflow Damage 117 | . 88 . 29 Projectiles . | . . . . Explosions 117 | . 88 . 29 Melee . | . . . . Knockbacks . | . . . . Impact . | . . . . Kinetic . | . . . . Secondary . | . . . . Self-Inflicted Damage 174 | . 139 . 35 Shots 4 | . 3 . 1 Rammed . | . . . . Targets Rammed . | . . . . Kicked . | . . . . Crushed . | . . . . Highest Temperature 396 | 40 228 20 396 Average Temperature 60 | 19 54 12 101 Received Heat Transfer 351 | . 255 . 96 Effects 1 | . 1 . . Energy Bleed 1 | . 1 . . Siege Activations . | . . . . Robots Corrupted . | . . . . Combat Hostiles . | . . . . Parts Fried . | . . . . Impact Corruptions . | . . . . Robots Melted . | . . . . Combat Hostiles . | . . . . Parts Melted 8 | . 2 . 6 Heat Transferred 2028 | 222 901 150 755 Parts Sabotaged . | . . . . Parts Stolen . | . . . . Parts Stripped . | . . . . Power Chain Reactions 2 | . . . 2 Missiles Intercepted . | . . . . Alert | -11 -10 -10 -9 ------- Run | Scr Mat Min Mat Peak Influence 420 | 20 420 133 346 Average Influence 195 | 6 214 129 214 Maximum Alert Level 2 | . 2 . 1 Low Security (%) 52 | 100 42 100 45 Level 1 42 | . 49 . 54 Level 2 4 | . 7 . . Level 3 . | . . . . Level 4 . | . . . . Level 5 . | . . . . High Security . | . . . . Max Security . | . . . . Squads Dispatched 7 | . 4 . 3 Investigation 3 | . 2 . 1 Extermination . | . . . . Reinforcement 4 | . 2 . 2 Assault . | . . . . Garrison . | . . . . Intercept . | . . . . Construction Impeded . | . . . . Haulers Reinforced . | . . . . Stealth | -11 -10 -10 -9 --------- Run | Scr Mat Min Mat Distress Signals 3 | . . . 3 Communications Jammed . | . . . . Distress Signals . | . . . . Times Spotted 64 | . 34 . 30 Peak Tracking Total 8 | . 8 . 8 Tactical Retreats 1 | . . . 1 Traps | -11 -10 -10 -9 ------- Run | Scr Mat Min Mat Traps Triggered 2 | . 1 . 1 Indirectly . | . . . . Trap Hack Attempts . | . . . . Triggered . | . . . . Disarmed . | . . . . Reprogrammed . | . . . . Reused . | . . . . Traps Extracted . | . . . . Installed . | . . . . Triggered . | . . . . Machines | -11 -10 -10 -9 ---------- Run | Scr Mat Min Mat Machines Disabled 4 | . 3 . 1 Max in Single Turn 2 | . 2 . 1 Machines Sabotaged . | . . . . Garrisons Compromised . | . . . . Overloaded Fab Kills . | . . . . Fab Network Shutdowns . | . . . . Hacking | -11 -10 -10 -9 --------- Run | Scr Mat Min Mat Machines Accessed 7 | . 6 . 1 Terminals 6 | . 5 . 1 Fabricators . | . . . . Repair Stations . | . . . . Recycling Units 1 | . 1 . . Scanalyzers . | . . . . Garrison Access . | . . . . Total Hacks 17 | . 14 . 3 Successful 8 | . 7 . 1 Failed 9 | . 7 . 2 Catastrophic . | . . . . Database Lockouts . | . . . . Manual 17 | . 14 . 3 Terminals 16 | . 13 . 3 Fabricators . | . . . . Repair Stations . | . . . . Recycling Units 1 | . 1 . . Scanalyzers . | . . . . Garrison Access . | . . . . Terminal Hacks 2 | . 1 . 1 Part Schematic 1 | . 1 . . Recall Investigation 1 | . . . 1 Fabricator Hacks . | . . . . Repair Station Hacks . | . . . . Recycling Unit Hacks . | . . . . Scanalyzer . | . . . . Garrison Access Hacks . | . . . . Unauthorized Hacks 18 | . 16 . 2 Terminals 5 | . 5 . . Botnet 4 | . 4 . . Operators 1 | . 1 . . Fabricators . | . . . . Repair Stations . | . . . . Recycling Units 1 | . 1 . . Tunnel 1 | . 1 . . Scanalyzers . | . . . . Garrison Access . | . . . . Data Cores Recovered . | . . . . Used . | . . . . Hacking Detections 6 | . 5 . 1 Full Trace Events . | . . . . Feedback Events . | . . . . Feedback Blocked . | . . . . Robot Schematics Acquired . | . . . . Robots Built . | . . . . Matter . | . . . . Time . | . . . . Total Robot Build Rating . | . . . . Part Schematics Acquired 1 | . 1 . . Parts Built . | . . . . Matter . | . . . . Time . | . . . . Total Part Build Rating . | . . . . Parts Repaired . | . . . . Time . | . . . . Parts Recycled . | . . . . Recycled Matter . | . . . . Retrieved Matter . | . . . . Retrieved Components . | . . . . Parts Scanalyzed . | . . . . Part Schematics Acquired . | . . . . Parts Damaged . | . . . . Bothacking | -11 -10 -10 -9 ------------ Run | Scr Mat Min Mat Used RIF Installer . | . . . . Robots Hacked . | . . . . Non-combat . | . . . . Combat . | . . . . Robot Hacks Applied . | . . . . Relay Couplers Released . | . . . . Robots Rewired . | . . . . Allies Hacked . | . . . . Hacks Repelled . | . . . . Allies | -11 -10 -10 -9 -------- Run | Scr Mat Min Mat Total Allies 2 | . . 2 . Largest Group 2 | . . 2 1 Highest-Rated Group 42 | . . 42 31 Highest-Rated Ally 31 | . . 31 31 Total Orders . | . . . . Ally Attacks 9 | . . . 9 Total Damage 104 | . . . 104 Kills 2 | . . . 2 Allies Corrupted . | . . . . Allies Melted . | . . . . Intel | -11 -10 -10 -9 ------- Run | Scr Mat Min Mat Robot Analysis Total . | . . . . Derelict Logs Recovered 2 | . . 2 . Drone Launches . | . . . . Drone Recoveries . | . . . . Exploration | -11 -10 -10 -9 ------------- Run | Scr Mat Min Mat Turns Passed 1758 | 76 1036 216 430 Spaces Moved 1305 | 40 801 200 264 Core 9 | 9 . . . Treads 44 | . . . 44 Legs . | . . . . Wheels 1252 | 31 801 200 220 Hover . | . . . . Flight . | . . . . Fastest Speed 50 | 50 80 100 100 Average Speed 99 | 87 95 100 112 Slowest Speed 180 | 100 120 100 180 Overloaded Moves . | . . . . Propulsion Burnouts . | . . . . Robots Hopped . | . . . . Cave-ins Triggered 1 | . . . 1 Exploration Rate (%) 49 | 5 98 60 36 Regions Visited 3 Branch Regions 1 Pre-discovered Areas 2 | . 1 1 . Known Exits Taken . | . . . . Unknown Exits Taken 3 | 1 1 1 . Scrap Searched 2 | . . 2 . Spaces Dug 20 | . 14 . 6 Terrain Destroyed 110 | . 88 1 21 Melee . | . . . . Projectile 9 | . 8 1 . AOE 101 | . 80 . 21 Actions | -11 -10 -10 -9 --------- Run | Scr Mat Min Mat Total 1549 | 74 930 204 341 Wait 29 | . 6 1 22 Move 1302 | 39 800 199 264 Hop . | . . . . Pick Up 41 | 17 15 . 9 Fast Attach . | . . . . Attach 23 | 6 8 . 9 Detach . | . . . . Swap 13 | 2 8 . 3 Drop 9 | 3 5 . 1 Fire 132 | 7 88 4 33 Melee . | . . . . Ram . | . . . . Kick . | . . . . Crush . | . . . . Escape Stasis . | . . . . Rewire . | . . . . Trap . | . . . . Miscellaneous . | . . . . Route ------- -11/Scrapyard -10/Materials (discovered 5 exits: *Mat x3 / [*Min x2]) -10/Mines -9/Materials (discovered 1 exit: [*Min]) History --------- Turn | Location | Event 25 | -11/Scrapyard | Discovered new exit (range 14) 77 | -11/Scrapyard | Entered Materials 224 | -10/Materials | Discovered new exit (range 12) 406 | -10/Materials | Discovered new exit (range 6) 499 | -10/Materials | Discovered new exit (range 16) 541 | -10/Materials | Core integrity fell below 50% 564 | -10/Materials | Build established: Scavenger-Mutant 651 | -10/Materials | Discovered new exit (range 6) 693 | -10/Materials | Discovered new exit (range 14) 1001 | -10/Materials | Build established: Mutant 1113 | -10/Materials | Entered Mines 1231 | -10/Mines | Learned location of Zion (-6) 1242 | -10/Mines | Learned Materials garrison access intel 1312 | -10/Mines | Discovered new exit (range 9) 1329 | -10/Mines | Entered Materials 1329 | -9/Materials | Accompanied by 1 ally 1329 | -9/Materials | Evolved 2 slots: Propulsion x1, Utility x1 1334 | -9/Materials | Led the pair of lost Derelicts to an unsafe place 1503 | -9/Materials | Discovered new exit (range 15) 1640 | -9/Materials | Crushed by falling debris 1671 | -9/Materials | Lost 7 parts (1p3n3w) 1759 | -9/Materials | Self-destructed Last Messages --------------- 01742_ S-10 Pest misfires. 01745_ K-01 Serf collects debris. 01748_ S-10 Pest misfires. 01748_ K-01 Serf collects debris. 01750_ System corrupted: Imp. Medium Laser targeting data glitched. 01750_ K-01 Serf collects debris. 01750_ R-06 Scavenger collects Ion Engine. 01751_ K-01 Serf sends out distress signal. 01751_ C-30 ARC bursts open, deploying its payload. 01751_ S-10 Pest unfolds itself. 01753_ Flight Unit melted. 01753_ S-10 Pest destroyed. 01753_ Destroyed Flight Unit. 01753_ K-01 Serf collects debris. 01753_ R-06 Scavenger collects Lgt. Assault Rifle. 01754_ K-01 Serf collects debris. 01756_ R-06 Scavenger collects Transport Network Coupler. 01757_ K-01 Serf collects debris. 01757_ Beamcaster destroyed. 01759_ K-01 Serf collects debris. Map ----- +----------------------------------------------------+ | | | | | | | | | | | | | | | | | | | | | | | | | | | | | | | ?????????????????????????????????????????????????? | | ?????????????????????????????????????????????????? | | ???????????????????##########?????????##########?? | | ???????????????????# #?????????# #?? | | ???????????????????# #?????????# #?? | | ???????????????????# #?????????# #?? | | ???????????????????# #?????????# #?? | | ???????????????????# k #?????????# #?? | | ?????????? # # =[ #?????##### #?? | | ????????????? ; s/%s ![k r####### + ! #?? | | ???????????????????# %[@ + # #?? | | ???????????????????# s = ####### # ### | | ???????????????????##########?????# ####+######" | | ??????????????????????????????????# ## #??# | | ???????????????????????????????#### #### | | ???????????????????????????????+ + | | ???????????????????????????????#### #### | | ?????????????????????????????########### #???# | | ???????????????????????????? ####### ##???# | | ???????????????????????????? #????# | | ???????????????????????????? #????# | | ?????????????????????????????# /// #????# | | ?????????????????????????????# // ###### | | ?????????????????????????????# // | | ?????????????????????????????# | | ???????????????????????????? + | | ?????????????????????????????# " | | ?????????????????????????????# % | | ?????????????????????????????# " ##### | | ?????????????????????????????# #### | | ?????????????????????????????# #### | | ?????????????????????????????# + | | ?????????????????????????????# ##### | | ?????????????????????????????# ##### | | ?????????????????????????????## #???# | +----------------------------------------------------+ Best States ------------- Heat Dissipation 28 Energy Generation 18 Energy Capacity 250 Matter Stores 300 Matter Capacity 300 Sight Range 16 Terrain Scan Density 10 Evasion (%) 44 Recoil Reduction 3 Item Schematics ----------------- Lrg. Storage Unit | -10/Materials | Hacked Robot Schematics ------------------ None Fabricated ------------ Nothing Alien Tech Used ----------------- None Achievements -------------- None Challenges ------------ None Game ------ Seed IonAlphaKinecellerator Manual? 0 Play Time 00:14:53 Cumulative 192.3 hours Start 2019.11.25 @ 18:14:23 End 2019.11.25 @ 18:35:50 Sessions 1 Manual Loads 0 Difficulty Rogue Special Mode None Game No. 267 Rogue 267 Adventurer 0 Explorer 0 Win Type - Total 1 Types 1/0/0/0/0/0/0 Lore% 51 Gallery% 72 Achievement% 48 Wizard Run 0 Options --------- ASCII 0 Keyboard 0 Movement Numpad Keybinds 0 Fullscreen 1 Font 16/Terminus Map View 75x55 Tactical HUD 1 Map Filters NONE Filters NONE Steam 1 RUN: 0c40df61-1c4f-42f3-8c33-f7ba4ea09933